[Event "*** Titled Tuesday Blitz"]
[Site "Chess.com"]
[Date "2020.12.01"]
[Round "2"]
[White "Lukianoo"]
[Black "26andrej26"]
[Result "1-0"]
[WhiteElo "2770"]
[BlackElo "2489"]
[TimeControl "180+1"]
[EndTime "10:16:07 PST"]
[Termination "Lukianoo won by checkmate"]

1. e4 {[%clk 0:02:50.8]} 1... c5 {[%clk 0:02:59.1]} 2. Nf3 {[%clk 0:02:44.8]}
2... d6 {[%clk 0:02:59.5]} 3. d4 {[%clk 0:02:37.6]} 3... cxd4 {[%clk 0:03:00.4]}
4. Qxd4 {[%clk 0:02:35.4]} 4... e5 {[%clk 0:03:00.2]} 5. Bb5+ {[%clk 0:02:28.3]}
5... Nd7 {[%clk 0:03:00]} 6. Qd3 {[%clk 0:02:27.2]} 6... h6 {[%clk 0:03:00.9]}
7. O-O {[%clk 0:02:25.8]} 7... Nf6 {[%clk 0:03:01.8]} 8. b3 {[%clk 0:02:25.1]}
8... Be7 {[%clk 0:03:02.7]} 9. Ba3 {[%clk 0:02:21.9]} 9... O-O {[%clk
0:03:01.2]} 10. Bxd6 {[%clk 0:02:20.6]} 10... Bxd6 {[%clk 0:02:58.4]} 11. Qxd6
{[%clk 0:02:19.3]} 11... Nxe4 {[%clk 0:02:58.9]} 12. Qd1 {[%clk 0:02:11]} 12...
Qf6 {[%clk 0:02:44.2]} 13. Bxd7 {[%clk 0:02:05.9]} 13... Rd8 {[%clk 0:02:37.5]}
14. Qe1 {[%clk 0:01:58.7]} 14... Bxd7 {[%clk 0:01:43]} 15. Qxe4 {[%clk
0:01:57.5]} 15... Re8 {[%clk 0:01:38.9]} 16. Nc3 {[%clk 0:01:56.6]} 16... Bc6
{[%clk 0:01:38.9]} 17. Qe3 {[%clk 0:01:47.8]} 17... Rac8 {[%clk 0:01:34.2]} 18.
Rad1 {[%clk 0:01:43.1]} 18... Qg6 {[%clk 0:01:34.8]} 19. Rd2 {[%clk 0:01:36.9]}
19... Re6 {[%clk 0:01:34.9]} 20. Rfd1 {[%clk 0:01:30.3]} 20... Rf6 {[%clk
0:01:34.9]} 21. Nd5 {[%clk 0:01:26.2]} 21... Re6 {[%clk 0:01:32.8]} 22. c4
{[%clk 0:01:23]} 22... f6 {[%clk 0:01:24.9]} 23. Nh4 {[%clk 0:01:18.5]} 23...
Qh5 {[%clk 0:01:24.7]} 24. Qh3 {[%clk 0:01:17.7]} 24... Rce8 {[%clk 0:01:22.3]}
25. Nf5 {[%clk 0:01:15.9]} 25... Qg5 {[%clk 0:01:21.2]} 26. Nfe3 {[%clk
0:01:08.5]} 26... Rd6 {[%clk 0:01:08.1]} 27. Ne7+ {[%clk 0:01:04.5]} 27... Rxe7
{[%clk 0:01:08.3]} 28. Rxd6 {[%clk 0:01:04]} 28... g6 {[%clk 0:01:06.8]} 29.
Qc8+ {[%clk 0:00:59.9]} 29... Kf7 {[%clk 0:01:00]} 30. Rd8 {[%clk 0:00:55.5]}
30... f5 {[%clk 0:00:52.8]} 31. Rf8+ {[%clk 0:00:54.2]} 31... Kg7 {[%clk
0:00:52.9]} 32. Rg8+ {[%clk 0:00:49.2]} 32... Kh7 {[%clk 0:00:50.3]} 33. Rh8+
{[%clk 0:00:48]} 33... Kg7 {[%clk 0:00:50.5]} 34. Qf8# {[%clk 0:00:46.6]} 1-0

[Event "*** Titled Tuesday Blitz"]
[Site "Chess.com"]
[Date "2020.12.01"]
[Round "2"]
[White "Andreikka"]
[Black "Orest_Vovk"]
[Result "1-0"]
[WhiteElo "2882"]
[BlackElo "2548"]
[TimeControl "180+1"]
[EndTime "10:16:09 PST"]
[Termination "Andreikka won by resignation"]

1. d4 {[%clk 0:03:00.6]} 1... h6 {[%clk 0:02:57.5]} 2. e4 {[%clk 0:02:59.5]}
2... g5 {[%clk 0:02:57.9]} 3. Nc3 {[%clk 0:02:58]} 3... Bg7 {[%clk 0:02:57.5]}
4. h4 {[%clk 0:02:53.5]} 4... c5 {[%clk 0:02:54.8]} 5. dxc5 {[%clk 0:02:50.2]}
5... Bxc3+ {[%clk 0:02:52.4]} 6. bxc3 {[%clk 0:02:49.6]} 6... g4 {[%clk
0:02:41.1]} 7. Qxg4 {[%clk 0:02:47]} 7... Nf6 {[%clk 0:02:39.7]} 8. Qg7 {[%clk
0:02:42.7]} 8... Rg8 {[%clk 0:02:23.1]} 9. Qxh6 {[%clk 0:02:42.8]} 9... Qa5
{[%clk 0:02:22.8]} 10. Qe3 {[%clk 0:02:34.5]} 10... Nxe4 {[%clk 0:02:16.4]} 11.
Ne2 {[%clk 0:02:34.6]} 11... Nxc5 {[%clk 0:02:12.7]} 12. h5 {[%clk 0:02:32.9]}
12... d6 {[%clk 0:02:08.2]} 13. Nd4 {[%clk 0:02:24.9]} 13... Nc6 {[%clk
0:02:03.8]} 14. Bd2 {[%clk 0:02:24.7]} 14... Be6 {[%clk 0:01:55.3]} 15. Bb5
{[%clk 0:02:13.1]} 15... Kd7 {[%clk 0:01:33]} 16. c4 {[%clk 0:01:53.1]} 16...
Qb6 {[%clk 0:01:22.3]} 17. Rb1 {[%clk 0:01:51.2]} 17... Kd8 {[%clk 0:00:50.3]}
18. O-O {[%clk 0:01:25.6]} 18... Nxd4 {[%clk 0:00:45]} 19. Qxd4 {[%clk
0:01:26.5]} 19... a6 {[%clk 0:00:34]} 20. Bd7 {[%clk 0:01:16.1]} 20... Qc7
{[%clk 0:00:28.2]} 21. Bxe6 {[%clk 0:01:16.4]} 21... Nxe6 {[%clk 0:00:26.6]} 22.
Qd5 {[%clk 0:01:16.6]} 22... Rc8 {[%clk 0:00:12.9]} 23. Rxb7 {[%clk 0:01:12.2]}
23... Qxc4 {[%clk 0:00:12.9]} 24. Ba5+ {[%clk 0:01:12.6]} 24... Ke8 {[%clk
0:00:06.3]} 25. Qxc4 {[%clk 0:01:12.8]} 25... Rxc4 {[%clk 0:00:05.4]} 26. Rb8+
{[%clk 0:01:13.3]} 1-0

[Event "*** Titled Tuesday Blitz"]
[Site "Chess.com"]
[Date "2020.12.01"]
[Round "2"]
[White "Synctel"]
[Black "WeAintSurePal"]
[Result "0-1"]
[WhiteElo "2002"]
[BlackElo "2351"]
[TimeControl "180+1"]
[EndTime "10:16:11 PST"]
[Termination "WeAintSurePal won on time"]

1. e4 {[%clk 0:03:00.9]} 1... e6 {[%clk 0:02:59.6]} 2. d4 {[%clk 0:03:00.2]}
2... d5 {[%clk 0:02:55.1]} 3. Nd2 {[%clk 0:03:00.4]} 3... dxe4 {[%clk
0:02:54.4]} 4. Nxe4 {[%clk 0:03:01.3]} 4... Nf6 {[%clk 0:02:53.5]} 5. Bd3 {[%clk
0:02:59]} 5... Nc6 {[%clk 0:02:53]} 6. Nf3 {[%clk 0:02:49.5]} 6... Bd6 {[%clk
0:02:51.2]} 7. Qe2 {[%clk 0:02:31.7]} 7... a6 {[%clk 0:02:43.3]} 8. c3 {[%clk
0:02:25.1]} 8... b6 {[%clk 0:02:42.8]} 9. Bg5 {[%clk 0:02:14.9]} 9... Bb7 {[%clk
0:02:42.1]} 10. O-O-O {[%clk 0:01:49.9]} 10... h6 {[%clk 0:02:34.1]} 11. Bh4
{[%clk 0:01:38.8]} 11... Qe7 {[%clk 0:02:33.2]} 12. Rhe1 {[%clk 0:01:25.7]}
12... g5 {[%clk 0:02:24.6]} 13. Bg3 {[%clk 0:01:24.2]} 13... Bxg3 {[%clk
0:02:23.9]} 14. Nxg3 {[%clk 0:01:13.5]} 14... a5 {[%clk 0:02:23.2]} 15. Kb1
{[%clk 0:01:10.5]} 15... O-O-O {[%clk 0:02:22.8]} 16. h3 {[%clk 0:00:59.9]}
16... Nd5 {[%clk 0:02:22.5]} 17. Ba6 {[%clk 0:00:53.5]} 17... Nf4 {[%clk
0:02:21.8]} 18. Bxb7+ {[%clk 0:00:53.7]} 18... Kxb7 {[%clk 0:02:21.8]} 19. Qe4
{[%clk 0:00:53]} 19... Qd6 {[%clk 0:02:13.3]} 20. Ne5 {[%clk 0:00:51.8]} 20...
Rhf8 {[%clk 0:02:10.4]} 21. Nf1 {[%clk 0:00:31.8]} 21... Qd5 {[%clk 0:02:09.5]}
22. Qxd5 {[%clk 0:00:26.8]} 22... exd5 {[%clk 0:02:10.4]} 23. g3 {[%clk
0:00:25.7]} 23... Nxh3 {[%clk 0:02:06.8]} 24. Nxc6 {[%clk 0:00:24.2]} 24... Kxc6
{[%clk 0:02:06.7]} 25. Re2 {[%clk 0:00:14.3]} 25... Rde8 {[%clk 0:02:06.1]} 26.
Rde1 {[%clk 0:00:14.6]} 26... Kd7 {[%clk 0:02:05.4]} 27. Ne3 {[%clk 0:00:13.8]}
27... c6 {[%clk 0:02:00.7]} 28. Nf5 {[%clk 0:00:13]} 28... Nxf2 {[%clk
0:01:56.8]} 29. Rxe8 {[%clk 0:00:11.3]} 29... Rxe8 {[%clk 0:01:57.7]} 30. Rxe8
{[%clk 0:00:10.9]} 30... Kxe8 {[%clk 0:01:58.5]} 31. Nxh6 {[%clk 0:00:11.5]}
31... Ne4 {[%clk 0:01:57.5]} 32. Nf5 {[%clk 0:00:10]} 32... Kd7 {[%clk
0:01:56.9]} 33. Kc2 {[%clk 0:00:09.2]} 33... Ke6 {[%clk 0:01:57.3]} 34. g4
{[%clk 0:00:09.4]} 34... Nf2 {[%clk 0:01:55.9]} 35. Ne3 {[%clk 0:00:09.8]} 35...
Ne4 {[%clk 0:01:53.3]} 36. a4 {[%clk 0:00:10.1]} 36... Nd6 {[%clk 0:01:53.4]}
37. b3 {[%clk 0:00:10.3]} 37... f5 {[%clk 0:01:53.7]} 38. gxf5+ {[%clk
0:00:08.8]} 38... Nxf5 {[%clk 0:01:54.6]} 39. Ng4 {[%clk 0:00:08.9]} 39... Ne7
{[%clk 0:01:49.3]} 40. Kd3 {[%clk 0:00:08.8]} 40... Kf5 {[%clk 0:01:49.6]} 41.
Ne5 {[%clk 0:00:08.6]} 41... Kf4 {[%clk 0:01:48.2]} 42. c4 {[%clk 0:00:03.4]}
42... g4 {[%clk 0:01:47.6]} 0-1

[Event "*** Titled Tuesday Blitz"]
[Site "Chess.com"]
[Date "2020.12.01"]
[Round "2"]
[White "MIJuanReyesRosa"]
[Black "elegant285"]
[Result "1-0"]
[WhiteElo "2065"]
[BlackElo "2343"]
[TimeControl "180+1"]
[EndTime "10:16:16 PST"]
[Termination "MIJuanReyesRosa won by resignation"]

1. e4 {[%clk 0:02:57]} 1... e6 {[%clk 0:02:58.2]} 2. d4 {[%clk 0:02:56.8]} 2...
d5 {[%clk 0:02:58.2]} 3. Nd2 {[%clk 0:02:57.1]} 3... dxe4 {[%clk 0:02:57]} 4.
Nxe4 {[%clk 0:02:56.9]} 4... Nd7 {[%clk 0:02:57.8]} 5. Bd3 {[%clk 0:02:56.6]}
5... Ngf6 {[%clk 0:02:58.2]} 6. Nf3 {[%clk 0:02:56.3]} 6... Nxe4 {[%clk
0:02:58]} 7. Bxe4 {[%clk 0:02:56.3]} 7... Nf6 {[%clk 0:02:58.9]} 8. Bd3 {[%clk
0:02:56.5]} 8... Be7 {[%clk 0:02:56.2]} 9. O-O {[%clk 0:02:56.2]} 9... c5 {[%clk
0:02:55.7]} 10. Qe2 {[%clk 0:02:48.7]} 10... O-O {[%clk 0:02:52.9]} 11. Rd1
{[%clk 0:02:36.7]} 11... Qc7 {[%clk 0:02:50.8]} 12. c4 {[%clk 0:02:11]} 12... b6
{[%clk 0:02:49.3]} 13. Bg5 {[%clk 0:01:58.3]} 13... Bb7 {[%clk 0:02:45.3]} 14.
dxc5 {[%clk 0:01:46.3]} 14... Qxc5 {[%clk 0:02:39.4]} 15. Ne5 {[%clk 0:01:38.8]}
15... Rfd8 {[%clk 0:02:17.6]} 16. a3 {[%clk 0:01:29]} 16... h6 {[%clk
0:02:01.5]} 17. Bh4 {[%clk 0:01:18]} 17... Rxd3 {[%clk 0:01:28.7]} 18. Rxd3
{[%clk 0:01:10.1]} 18... Be4 {[%clk 0:01:23.5]} 19. Rd7 {[%clk 0:00:43.6]} 19...
Qxe5 {[%clk 0:01:09.3]} 20. Rxe7 {[%clk 0:00:38.5]} 20... Qd6 {[%clk 0:00:39]}
21. Bxf6 {[%clk 0:00:35]} 21... gxf6 {[%clk 0:00:37.2]} 22. Qxe4 {[%clk
0:00:34.8]} 22... Qxe7 {[%clk 0:00:35.1]} 23. Qxa8+ {[%clk 0:00:33.9]} 1-0

[Event "*** Titled Tuesday Blitz"]
[Site "Chess.com"]
[Date "2020.12.01"]
[Round "2"]
[White "tteshan"]
[Black "Vojtap"]
[Result "1-0"]
[WhiteElo "2387"]
[BlackElo "2114"]
[TimeControl "180+1"]
[EndTime "10:16:18 PST"]
[Termination "tteshan won by resignation"]

1. e4 {[%clk 0:03:00.1]} 1... c5 {[%clk 0:02:59.5]} 2. c3 {[%clk 0:02:57.7]}
2... Nf6 {[%clk 0:02:56.7]} 3. e5 {[%clk 0:02:56.8]} 3... Nd5 {[%clk 0:02:57.3]}
4. Nf3 {[%clk 0:02:57.3]} 4... Nc6 {[%clk 0:02:55.5]} 5. d4 {[%clk 0:02:57.7]}
5... cxd4 {[%clk 0:02:55.6]} 6. cxd4 {[%clk 0:02:57.5]} 6... d6 {[%clk
0:02:55.9]} 7. Bc4 {[%clk 0:02:57.5]} 7... e6 {[%clk 0:02:52.8]} 8. Qe2 {[%clk
0:02:55.7]} 8... dxe5 {[%clk 0:02:42.2]} 9. dxe5 {[%clk 0:02:54]} 9... Be7
{[%clk 0:02:38.9]} 10. O-O {[%clk 0:02:53.8]} 10... Qa5 {[%clk 0:02:28.6]} 11.
Rd1 {[%clk 0:02:45.1]} 11... Nb6 {[%clk 0:02:27.4]} 12. Bd3 {[%clk 0:02:34.3]}
12... O-O {[%clk 0:02:21.3]} 13. Qe4 {[%clk 0:02:29.9]} 13... g6 {[%clk
0:02:18.8]} 14. Nc3 {[%clk 0:02:21.5]} 14... Nd5 {[%clk 0:02:12.6]} 15. Nxd5
{[%clk 0:02:18.1]} 15... Qxd5 {[%clk 0:02:11.9]} 16. Qe2 {[%clk 0:02:04.1]}
16... Qc5 {[%clk 0:01:26.9]} 17. Be3 {[%clk 0:02:01.3]} 17... Qb4 {[%clk
0:01:26]} 18. Rac1 {[%clk 0:01:54.1]} 18... Rd8 {[%clk 0:01:15.9]} 19. a3 {[%clk
0:01:49]} 19... Qa5 {[%clk 0:01:05.9]} 20. Bf4 {[%clk 0:01:27.6]} 20... Nd4
{[%clk 0:00:30.1]} 21. Nxd4 {[%clk 0:01:21.5]} 21... Rxd4 {[%clk 0:00:31]} 22.
Be4 {[%clk 0:01:17.1]} 22... Bc5 {[%clk 0:00:21.2]} 23. b4 {[%clk 0:01:11.2]}
23... Qd8 {[%clk 0:00:19.8]} 24. bxc5 {[%clk 0:01:09]} 24... Rxd1+ {[%clk
0:00:18.9]} 25. Rxd1 {[%clk 0:01:09.9]} 25... Qe7 {[%clk 0:00:19]} 26. Qd3
{[%clk 0:01:06.3]} 26... Kg7 {[%clk 0:00:16.4]} 27. Qd2 {[%clk 0:01:03.9]} 27...
a5 {[%clk 0:00:15.2]} 28. Bh6+ {[%clk 0:01:03.2]} 28... Kg8 {[%clk 0:00:13]} 29.
Qd8+ {[%clk 0:01:03.2]} 1-0

[Event "*** Titled Tuesday Blitz"]
[Site "Chess.com"]
[Date "2020.12.01"]
[Round "2"]
[White "yourstrulyme"]
[Black "Gabrielian_Artur"]
[Result "0-1"]
[WhiteElo "2486"]
[BlackElo "2761"]
[TimeControl "180+1"]
[EndTime "10:16:19 PST"]
[Termination "Gabrielian_Artur won on time"]

1. e4 {[%clk 0:03:00.1]} 1... c5 {[%clk 0:02:59.5]} 2. Nf3 {[%clk 0:03:00.4]}
2... d6 {[%clk 0:02:59.5]} 3. d4 {[%clk 0:03:00]} 3... cxd4 {[%clk 0:02:59.8]}
4. Nxd4 {[%clk 0:03:00.9]} 4... Nf6 {[%clk 0:03:00.1]} 5. Nc3 {[%clk 0:03:01.5]}
5... Nc6 {[%clk 0:03:00.4]} 6. Be2 {[%clk 0:02:25.8]} 6... g6 {[%clk 0:02:55.9]}
7. Be3 {[%clk 0:02:20.5]} 7... Bg7 {[%clk 0:02:55.4]} 8. O-O {[%clk 0:02:20.3]}
8... O-O {[%clk 0:02:54.7]} 9. Nb3 {[%clk 0:02:05.1]} 9... Be6 {[%clk
0:02:53.6]} 10. f4 {[%clk 0:01:54.9]} 10... Qc8 {[%clk 0:02:53.2]} 11. h3 {[%clk
0:01:46]} 11... Rd8 {[%clk 0:02:52.5]} 12. Bf3 {[%clk 0:01:43.7]} 12... Bc4
{[%clk 0:02:50.3]} 13. Rf2 {[%clk 0:01:42.2]} 13... e5 {[%clk 0:02:50.1]} 14.
Rd2 {[%clk 0:01:31.5]} 14... exf4 {[%clk 0:02:47.4]} 15. Bxf4 {[%clk 0:01:29.9]}
15... Ne5 {[%clk 0:02:47.6]} 16. Nd4 {[%clk 0:00:51.8]} 16... a6 {[%clk
0:02:33.9]} 17. Nd5 {[%clk 0:00:51.3]} 17... Bxd5 {[%clk 0:02:30.4]} 18. exd5
{[%clk 0:00:51.1]} 18... Nc4 {[%clk 0:02:28.5]} 19. c3 {[%clk 0:00:21.9]} 19...
Nxd2 {[%clk 0:02:27.6]} 20. Qxd2 {[%clk 0:00:22.8]} 20... Qc5 {[%clk 0:02:21.1]}
21. Kh1 {[%clk 0:00:21.5]} 21... Re8 {[%clk 0:02:17.8]} 22. Rf1 {[%clk
0:00:19.2]} 22... Nd7 {[%clk 0:02:04.7]} 23. Nb3 {[%clk 0:00:18.8]} 23... Qc7
{[%clk 0:02:03]} 24. Qf2 {[%clk 0:00:15.4]} 24... Ne5 {[%clk 0:02:02.2]} 25. Be2
{[%clk 0:00:14.7]} 25... Re7 {[%clk 0:01:48.8]} 26. Nd4 {[%clk 0:00:14.4]} 26...
Rae8 {[%clk 0:01:47.4]} 27. Bg5 {[%clk 0:00:13.3]} 27... Rd7 {[%clk 0:01:39.4]}
28. Bf6 {[%clk 0:00:07.6]} 28... Bxf6 {[%clk 0:01:37.8]} 29. Qxf6 {[%clk
0:00:08.5]} 29... Qd8 {[%clk 0:01:38.2]} 30. Qf4 {[%clk 0:00:07.1]} 30... Rde7
{[%clk 0:01:35.4]} 31. Rf2 {[%clk 0:00:05.4]} 31... Qa5 {[%clk 0:01:30.9]} 32.
a3 {[%clk 0:00:04.7]} 32... Qxd5 {[%clk 0:01:30.1]} 33. Kh2 {[%clk 0:00:03.4]}
33... Nc6 {[%clk 0:01:28.3]} 0-1

[Event "*** Titled Tuesday Blitz"]
[Site "Chess.com"]
[Date "2020.12.01"]
[Round "2"]
[White "Faqade"]
[Black "Rap_woyska"]
[Result "1-0"]
[WhiteElo "2682"]
[BlackElo "2459"]
[TimeControl "180+1"]
[EndTime "10:16:20 PST"]
[Termination "Faqade won by resignation"]

1. e4 {[%clk 0:02:48.1]} 1... e6 {[%clk 0:02:59.8]} 2. d4 {[%clk 0:02:47.3]}
2... d5 {[%clk 0:03:00.4]} 3. Nd2 {[%clk 0:02:47.6]} 3... Be7 {[%clk 0:03:00.5]}
4. Ngf3 {[%clk 0:02:46.7]} 4... Nf6 {[%clk 0:03:00.6]} 5. Bd3 {[%clk 0:02:45.5]}
5... c5 {[%clk 0:03:00.5]} 6. dxc5 {[%clk 0:02:43.8]} 6... dxe4 {[%clk
0:02:58.6]} 7. Nxe4 {[%clk 0:02:44.7]} 7... Nxe4 {[%clk 0:02:58.8]} 8. Bxe4
{[%clk 0:02:45.6]} 8... Qxd1+ {[%clk 0:02:59]} 9. Kxd1 {[%clk 0:02:46.3]} 9...
Bxc5 {[%clk 0:02:58.1]} 10. Ke2 {[%clk 0:02:46]} 10... Nd7 {[%clk 0:02:57.6]}
11. Rd1 {[%clk 0:02:44.9]} 11... Nf6 {[%clk 0:02:41.2]} 12. Bd3 {[%clk 0:02:44]}
12... b6 {[%clk 0:02:37.4]} 13. Bb5+ {[%clk 0:02:39.3]} 13... Bd7 {[%clk
0:02:34.3]} 14. Rxd7 {[%clk 0:02:15.1]} 14... Nxd7 {[%clk 0:02:35.2]} 15. Ne5
{[%clk 0:02:15.4]} 15... Rd8 {[%clk 0:02:33.2]} 16. Be3 {[%clk 0:01:42.8]} 16...
Bxe3 {[%clk 0:01:28.8]} 17. Kxe3 {[%clk 0:01:43.7]} 17... Ke7 {[%clk 0:01:23.7]}
18. Nc6+ {[%clk 0:01:33.2]} 18... Kf6 {[%clk 0:01:20.7]} 19. Rd1 {[%clk
0:00:58.4]} 19... a6 {[%clk 0:00:29.5]} 20. Nxd8 {[%clk 0:00:57.4]} 20... Nb8
{[%clk 0:00:20.5]} 21. Ba4 {[%clk 0:00:47]} 21... b5 {[%clk 0:00:20.5]} 22. Bb3
{[%clk 0:00:46.7]} 22... Ke7 {[%clk 0:00:20.8]} 23. Nb7 {[%clk 0:00:46.7]} 23...
a5 {[%clk 0:00:19]} 24. Nxa5 {[%clk 0:00:46.6]} 1-0

[Event "*** Titled Tuesday Blitz"]
[Site "Chess.com"]
[Date "2020.12.01"]
[Round "2"]
[White "juancruzarias"]
[Black "GMSrinath"]
[Result "0-1"]
[WhiteElo "2530"]
[BlackElo "2834"]
[TimeControl "180+1"]
[EndTime "10:16:21 PST"]
[Termination "GMSrinath won by resignation"]

1. d4 {[%clk 0:02:59.9]} 1... Nf6 {[%clk 0:02:58]} 2. Nf3 {[%clk 0:02:59.9]}
2... d5 {[%clk 0:02:57.8]} 3. e3 {[%clk 0:02:59.7]} 3... c5 {[%clk 0:02:55]} 4.
c3 {[%clk 0:02:59.4]} 4... Nc6 {[%clk 0:02:54.7]} 5. Nbd2 {[%clk 0:02:58.9]}
5... Bf5 {[%clk 0:02:53.8]} 6. dxc5 {[%clk 0:02:55.3]} 6... e5 {[%clk
0:02:52.9]} 7. b4 {[%clk 0:02:55.2]} 7... e4 {[%clk 0:02:52.6]} 8. Nd4 {[%clk
0:02:54.3]} 8... Bg6 {[%clk 0:02:51.6]} 9. Bb5 {[%clk 0:02:53.6]} 9... Rc8
{[%clk 0:02:51.5]} 10. Qa4 {[%clk 0:02:53.8]} 10... Qd7 {[%clk 0:02:52]} 11. Bb2
{[%clk 0:02:44.6]} 11... Be7 {[%clk 0:02:52]} 12. c4 {[%clk 0:02:34.4]} 12...
O-O {[%clk 0:02:48.4]} 13. cxd5 {[%clk 0:02:33.8]} 13... Nxd5 {[%clk 0:02:49.3]}
14. a3 {[%clk 0:02:28.8]} 14... Bf6 {[%clk 0:02:27.1]} 15. Bxc6 {[%clk
0:02:17.1]} 15... bxc6 {[%clk 0:02:26.9]} 16. O-O {[%clk 0:02:14.2]} 16... h5
{[%clk 0:02:18.4]} 17. b5 {[%clk 0:01:59.1]} 17... cxb5 {[%clk 0:02:15.1]} 18.
Qb3 {[%clk 0:01:43.1]} 18... Rxc5 {[%clk 0:02:11.3]} 19. Rac1 {[%clk 0:01:43.5]}
19... Rfc8 {[%clk 0:02:09.8]} 20. Rxc5 {[%clk 0:01:43]} 20... Rxc5 {[%clk
0:02:10.7]} 21. h3 {[%clk 0:01:32.6]} 21... h4 {[%clk 0:02:02.1]} 22. Rd1 {[%clk
0:01:31.6]} 22... Bh5 {[%clk 0:02:00.5]} 23. Nxe4 {[%clk 0:01:24.9]} 23... Bxd1
{[%clk 0:01:41.9]} 24. Nxc5 {[%clk 0:01:24.8]} 24... Bxb3 {[%clk 0:01:35.1]} 25.
Nxd7 {[%clk 0:01:25]} 25... Bc4 {[%clk 0:01:35.6]} 26. Nxf6+ {[%clk 0:01:23.2]}
26... Nxf6 {[%clk 0:01:34.9]} 27. f3 {[%clk 0:01:23]} 27... Nd5 {[%clk 0:01:33]}
28. Kf2 {[%clk 0:01:23]} 28... a5 {[%clk 0:01:31.4]} 29. Nc6 {[%clk 0:01:20.3]}
29... a4 {[%clk 0:01:30.1]} 30. Be5 {[%clk 0:01:02.3]} 30... f6 {[%clk
0:01:24.6]} 31. Bd6 {[%clk 0:01:02.3]} 31... Nc3 {[%clk 0:01:21.2]} 32. Bc5
{[%clk 0:00:48.4]} 32... Kf7 {[%clk 0:01:14.7]} 33. Nd4 {[%clk 0:00:45.7]} 33...
Nd1+ {[%clk 0:01:12.5]} 34. Kg1 {[%clk 0:00:35.3]} 34... g5 {[%clk 0:01:11.5]}
35. e4 {[%clk 0:00:27]} 35... Nb2 {[%clk 0:01:10.7]} 36. Kf2 {[%clk 0:00:26.2]}
36... Nd3+ {[%clk 0:01:10.2]} 0-1

[Event "*** Titled Tuesday Blitz"]
[Site "Chess.com"]
[Date "2020.12.01"]
[Round "2"]
[White "banane_verte"]
[Black "tdf98pantani"]
[Result "1-0"]
[WhiteElo "2487"]
[BlackElo "2686"]
[TimeControl "180+1"]
[EndTime "10:16:21 PST"]
[Termination "banane_verte won by resignation"]

1. e4 {[%clk 0:03:00.9]} 1... c6 {[%clk 0:02:57.8]} 2. d4 {[%clk 0:03:00.9]}
2... d5 {[%clk 0:02:58]} 3. Nc3 {[%clk 0:03:01.4]} 3... dxe4 {[%clk 0:02:57.6]}
4. Nxe4 {[%clk 0:03:02.3]} 4... Bf5 {[%clk 0:02:56.2]} 5. Ng3 {[%clk 0:03:02.3]}
5... Bg6 {[%clk 0:02:56.5]} 6. h4 {[%clk 0:03:02.9]} 6... h6 {[%clk 0:02:56.4]}
7. Nf3 {[%clk 0:03:03.4]} 7... Nd7 {[%clk 0:02:55.7]} 8. h5 {[%clk 0:03:03.9]}
8... Bh7 {[%clk 0:02:56]} 9. Bd3 {[%clk 0:03:04.5]} 9... Bxd3 {[%clk 0:02:56.2]}
10. Qxd3 {[%clk 0:03:05.4]} 10... e6 {[%clk 0:02:56.6]} 11. Bf4 {[%clk 0:03:06]}
11... Qa5+ {[%clk 0:02:56]} 12. Bd2 {[%clk 0:03:06.6]} 12... Bb4 {[%clk
0:02:55.3]} 13. c3 {[%clk 0:03:07.2]} 13... Be7 {[%clk 0:02:55.5]} 14. Ne4
{[%clk 0:03:06.8]} 14... Ngf6 {[%clk 0:02:55]} 15. c4 {[%clk 0:03:06.2]} 15...
Qc7 {[%clk 0:02:44.8]} 16. O-O-O {[%clk 0:03:02.9]} 16... Nxe4 {[%clk
0:02:42.3]} 17. Qxe4 {[%clk 0:03:03.8]} 17... Nf6 {[%clk 0:02:42.5]} 18. Qe2
{[%clk 0:03:04.3]} 18... Ng4 {[%clk 0:02:37.5]} 19. Ne5 {[%clk 0:02:39.3]} 19...
Nxe5 {[%clk 0:02:36.6]} 20. dxe5 {[%clk 0:02:40.2]} 20... O-O-O {[%clk
0:02:35.2]} 21. Bc3 {[%clk 0:02:36.8]} 21... Bg5+ {[%clk 0:02:25.5]} 22. Kb1
{[%clk 0:02:36.1]} 22... Rxd1+ {[%clk 0:02:22.8]} 23. Rxd1 {[%clk 0:02:34.8]}
23... Rd8 {[%clk 0:02:23.3]} 24. g3 {[%clk 0:02:11.7]} 24... Rxd1+ {[%clk
0:02:21.3]} 25. Qxd1 {[%clk 0:02:12.6]} 25... Qb6 {[%clk 0:02:13.5]} 26. Qd4
{[%clk 0:02:08.5]} 26... Qxd4 {[%clk 0:01:53.5]} 27. Bxd4 {[%clk 0:02:09.4]}
27... a6 {[%clk 0:01:48.6]} 28. Kc2 {[%clk 0:02:01.4]} 28... b5 {[%clk
0:01:47.8]} 29. cxb5 {[%clk 0:01:54.5]} 29... cxb5 {[%clk 0:01:47]} 30. Kd3
{[%clk 0:01:41.9]} 30... Kd7 {[%clk 0:01:44.4]} 31. Bc5 {[%clk 0:01:34.5]} 31...
g6 {[%clk 0:01:34.6]} 32. f4 {[%clk 0:01:19.1]} 32... Bd8 {[%clk 0:01:25.9]} 33.
g4 {[%clk 0:01:12.8]} 33... gxh5 {[%clk 0:01:24.1]} 34. gxh5 {[%clk 0:01:13.7]}
34... Be7 {[%clk 0:00:45.4]} 35. Bxe7 {[%clk 0:01:12.9]} 35... Kxe7 {[%clk
0:00:45.6]} 36. Kd4 {[%clk 0:01:13.4]} 36... Kd7 {[%clk 0:00:40]} 37. Kc5 {[%clk
0:01:13.2]} 37... Kc7 {[%clk 0:00:40.6]} 38. b4 {[%clk 0:01:12]} 1-0